bitfinex-derivatives/quotes_ETHF0:USTF0_20251021
["timestamp","ask_amount","ask_price","bid_price","bid_amount"]
[1761030455618,0.72710979,3886.6,3886.5,0.92226283]
[1761030458112,0.72710979,3886.6,3886.5,1.38531283]
[1761030458317,0.59670979,3886.6,3886.5,1.38531283]
[1761030459517,0.59670979,3886.6,3886.5,0.92226283]
[1761030460721,0.72710979,3886.6,3886.5,0.92226283]
[1761030460921,0.46630979,3886.6,3886.5,1.38531283]
[1761030461314,0.46630979,3886.6,3886.5,0.92226283]
[1761030463310,0.46630979,3886.6,3886.5,1.38531283]
[1761030464019,0.00326979,3886.6,3886.5,1.38531283]
[1761030465521,0.13366979,3886.6,3886.5,1.38531283]
[1761030466517,0.00326979,3886.6,3886.5,1.38531283]
[1761030468124,0.72710979,3886.6,3886.5,0.92226283]
[1761030469327,0.59670979,3886.6,3886.5,1.38531283]
[1761030470927,0.59670979,3886.6,3886.5,0.92226283]
[1761030473236,0.59670979,3886.6,3886.5,1.8470121]
[1761030474127,0.59670979,3886.6,3886.5,2.3100621]
[1761030474732,0.72710979,3886.6,3886.5,1.8470121]
[1761030474931,0.85750979,3886.6,3886.5,0.92226283]
[1761030475119,0.72710979,3886.6,3886.5,0.92226283]
[1761030476929,0.85750979,3886.6,3886.5,0.92226283]
[1761030477129,0.72710979,3886.6,3886.5,0.92226283]
[1761030481727,0.72710979,3886.6,3886.5,1.8470121]
[1761030482033,0.59670979,3886.6,3886.5,0.92226283]
[1761030482235,0.46630979,3886.6,3886.5,1.8470121]
[1761030483436,0.59660979,3886.6,3886.5,1.8470121]
[1761030483833,0.59660979,3886.6,3886.5,0.92226283]
[1761030484233,0.59660979,3886.6,3886.5,0.95749245]
[1761030484939,0.59660979,3886.6,3886.5,1.93661183]
[1761030485125,0.59660979,3886.6,3886.5,2.8613611]
[1761030485333,0.00326979,3886.6,3886.5,3.3244111]
[1761030485536,3.05469455,3887.3,3886.5,3.3244111]
[1761030485537,0.92401523,3887.2,3887.0,0.4661]
[1761030485736,1.38698523,3887.2,3887.1,0.7666]
[1761030486042,0.69734331,3887.2,3887.1,1.74571938]
[1761030486236,0.23437331,3887.2,3887.1,1.74571938]
[1761030486437,7.39696,3887.3,3887.2,0.7666]
[1761030486634,0.23635093,3887.3,3887.2,1.22957]
[1761030486832,0.00203741,3887.3,3887.2,1.22957]
[1761030487035,0.00203741,3887.3,3887.2,2.20868938]
[1761030487231,0.00203741,3887.3,3887.2,3.13228278]
[1761030487436,0.00203741,3887.3,3887.2,3.20277523]
[1761030487744,0.00203741,3887.3,3887.2,2.27918183]
[1761030488239,0.00203741,3887.3,3887.2,3.20225537]
[1761030489234,0.00203741,3887.3,3887.2,2.27918183]
[1761030490143,0.46288,3888.0,3887.9,0.7666]
[1761030490344,0.46288,3888.0,3887.9,0.83709245]
[1761030491142,0.002101,3888.0,3887.9,1.81621183]
[1761030493133,1.05431523,3889.0,3888.1,0.3337]
[1761030493340,9.70805,3889.1,3889.0,0.899]
[1761030493538,41.95677,3889.5,3889.0,0.899]
[1761030493539,0.2606,3889.6,3889.5,0.1324]
[1761030493740,9.83828,3889.6,3889.5,0.6769]
[1761030493941,9.96858,3889.6,3889.5,0.4661]
[1761030494139,9.97102311,3889.6,3889.5,1.44818303]
[1761030494649,9.97102311,3889.6,3889.5,1.51867548]
[1761030496243,16.64898435,3889.6,3889.5,1e-08]
[1761030496447,0.72343,3888.4,3888.3,0.5445]
[1761030496650,2.53169124,3888.4,3888.3,0.3337]
[1761030497041,2.53169124,3888.4,3887.5,0.59533]
[1761030497042,0.72346,3888.1,3888.0,0.3432]
[1761030497541,0.72346,3888.1,3888.0,0.67880255]
[1761030497740,0.72346,3888.1,3888.0,0.90090255]
[1761030498551,0.85376,3888.1,3888.0,0.67880255]
[1761030498843,0.85376,3888.1,3888.0,0.46800255]
[1761030500247,9.96676,3888.1,3888.0,0.00190255]
[1761030500440,11.64472124,3888.1,3888.0,0.68650255]
[1761030500641,11.51442124,3888.1,3888.0,0.68650255]
[1761030502146,11.64472124,3888.1,3888.0,0.46480255]
[1761030502746,11.64472124,3888.1,3888.0,0.68650255]
[1761030503047,11.51442124,3888.1,3888.0,0.68650255]
[1761030503750,11.64472124,3888.1,3888.0,0.68650255]
[1761030503954,11.64472124,3888.1,3888.0,0.46480255]
[1761030504449,11.64472124,3888.1,3888.0,0.00190255]
[1761030505150,16.64472124,3888.1,3888.0,0.00190255]
[1761030506248,0.72353,3887.5,3887.4,0.5525]
[1761030506456,9.83653,3887.5,3887.4,0.5525]
[1761030507156,9.83653,3887.5,3887.4,0.55549186]
[1761030508051,9.96673,3887.5,3887.4,0.55549186]
[1761030508353,9.57593,3887.5,3887.4,0.78099186]
[1761030509256,9.70613,3887.5,3887.4,0.78099186]
[1761030510051,9.83633,3887.5,3887.4,0.78099186]
[1761030511153,0.46293,3887.5,3887.4,0.78099186]
[1761030511856,0.59313,3887.5,3887.4,0.78099186]
[1761030514759,0.72333,3887.5,3887.4,0.78099186]
[1761030515153,0.72333,3887.5,3887.4,0.55549186]
[1761030515353,0.72333,3887.5,3887.4,0.78099186]
[1761030515658,0.59313,3887.5,3887.4,0.78099186]
[1761030515961,0.46293,3887.5,3887.4,0.78099186]
[1761030516258,0.59313,3887.5,3887.4,0.78099186]
[1761030518058,0.72333,3887.5,3887.4,0.78099186]
[1761030518258,0.72333,3887.5,3887.4,0.55549186]
[1761030518468,0.72333,3887.5,3887.4,0.78099186]
[1761030519165,0.59313,3887.5,3887.4,0.78099186]
[1761030519464,0.46293,3887.5,3887.4,0.78099186]
[1761030520558,0.72333,3887.5,3887.4,0.78099186]
[1761030522665,0.46293,3887.5,3887.4,0.78099186]
[1761030522967,0.72333,3887.5,3887.4,0.78099186]
[1761030524572,0.85353,3887.5,3887.4,0.55549186]
[1761030524867,0.46302,3886.8,3886.7,0.2199]
[1761030525071,2.12125964,3886.8,3886.7,0.2199]
[1761030525468,2.12125964,3886.8,3886.7,0.5551]
[1761030525663,2.12125964,3886.8,3886.7,0.7806]
[1761030525864,2.12420103,3886.8,3886.7,0.78347455]
[1761030526675,0.46596139,3886.8,3886.7,0.78347455]
[1761030530975,0.46596139,3886.8,3886.7,1.24650455]
[1761030531469,0.46596139,3886.8,3886.7,0.78347455]
[1761030532774,0.46596139,3886.8,3886.7,1.24650455]
[1761030533678,0.46596139,3886.8,3886.7,0.78347455]
[1761030534675,0.59616139,3886.8,3886.7,0.78347455]
[1761030535975,0.72636139,3886.8,3886.7,0.78347455]
[1761030536365,0.85656139,3886.8,3886.7,0.55797455]
[1761030537175,0.72636139,3886.8,3886.7,0.55797455]
[1761030538178,0.85696139,3886.8,3886.7,0.33807455]
[1761030540276,0.85696139,3886.8,3886.0,6.2983339]
[1761030540277,0.59369,3886.2,3886.1,0.92205661]
[1761030540475,0.72436,3885.6,3885.5,1.28125661]
[1761030540677,0.46322,3885.1,3885.0,0.3541]
[1761030540873,1.52843964,3885.6,3885.5,0.5916]
[1761030541077,9.112,3885.7,3885.5,0.5916]
[1761030541280,9.96695,3885.7,3885.6,0.3396]
[1761030541783,9.96695,3885.7,3885.6,0.5667]
[1761030541969,9.83635,3885.7,3885.6,0.5667]
[1761030542173,9.83635,3885.7,3885.6,0.795]
[1761030543082,0.59375,3885.7,3885.6,0.795]
[1761030544088,0.46315,3885.7,3885.6,0.795]
[1761030544277,0.59375,3885.7,3885.6,0.795]
[1761030549582,0.72435,3885.7,3885.6,0.795]
[1761030551977,0.85495,3885.7,3885.6,0.795]
[1761030554182,0.85495,3885.7,3885.6,0.3396]
[1761030554583,0.85495,3885.7,3885.6,0.5667]
[1761030554584,0.72435,3885.7,3885.6,0.5667]
[1761030556291,0.85495,3885.7,3885.6,0.5667]
[1761030556794,0.72435,3885.7,3885.6,0.5667]
[1761030557298,0.72435,3885.7,3885.6,0.7921]
[1761030564204,1.30381424,3885.7,3885.6,0.7921]
[1761030565497,1.17321424,3885.7,3885.6,0.7921]
[1761030566589,1.43401424,3885.7,3885.6,0.5667]
[1761030567406,1.30361424,3885.7,3885.6,0.5667]
[1761030567902,1.30361424,3885.7,3885.6,0.7921]
[1761030571111,1.53884169,3885.7,3885.6,0.7921]
[1761030572310,1.53884169,3885.7,3885.6,0.7903]
[1761030573696,0.57946424,3885.7,3885.6,1.25346]
[1761030573902,0.46309,3886.3,3886.2,0.4507]
[1761030574104,1.3796747,3886.8,3886.6,1.00914]
[1761030574105,0.00294139,3886.8,3886.6,1.00914]
[1761030574311,9.57896139,3886.8,3886.7,0.7773]
[1761030574610,0.46596139,3886.8,3886.7,0.7773]
[1761030574906,0.72676139,3886.8,3886.7,0.5578]
[1761030575109,2.53617724,3886.8,3886.7,0.3266]
[1761030575503,0.72676139,3886.8,3886.7,0.7773]
[1761030576012,9.70836139,3886.8,3886.7,0.7773]
[1761030576598,9.83876139,3886.8,3886.7,0.7773]
[1761030577209,9.70836139,3886.8,3886.7,0.7773]
[1761030577511,9.83876139,3886.8,3886.7,0.7773]
[1761030581416,9.70836139,3886.8,3886.7,0.7773]
[1761030581613,0.59636139,3886.8,3886.7,0.7773]
[1761030581817,9.70736139,3886.8,3886.7,0.7773]
[1761030582115,9.83776139,3886.8,3886.7,0.7773]
[1761030583004,9.70736139,3886.8,3886.7,0.7773]
[1761030583704,9.70736139,3886.8,3885.8,2.83685585]
[1761030583705,0.2608,3885.8,3884.9,2.49364382]
[1761030583909,2.40295585,3885.8,3885.6,1.61690792]
[1761030584108,2.40295585,3885.8,3885.6,0.2312]
[1761030584313,2.40295585,3885.8,3885.0,1.51270792]
[1761030584314,2.40295585,3885.8,3885.7,0.5578]
[1761030584515,0.85436,3885.6,3885.5,0.0030918]
[1761030584715,9.96436,3885.6,3885.5,0.0030918]
[1761030585016,9.96436,3885.6,3885.5,0.3296918]
[1761030585418,9.96436,3885.6,3885.5,0.0030918]
[1761030585621,9.96436,3885.6,3885.5,0.4568918]
[1761030585816,10.54164207,3885.6,3885.5,0.6880918]
[1761030586122,10.41124207,3885.6,3885.5,0.6880918]
[1761030586720,10.41124207,3885.6,3885.5,0.9075918]
[1761030586921,9.83396,3885.6,3885.5,0.9075918]
[1761030587713,10.54159092,3885.6,3885.5,0.6880918]
[1761030587914,10.54159092,3885.6,3885.5,0.3296918]
[1761030588118,10.54159092,3885.6,3885.5,0.0030918]
[1761030588622,1.43159092,3885.6,3885.5,0.0030918]
[1761030588817,0.57723092,3885.6,3885.5,0.9075918]
[1761030589018,0.85436,3885.7,3885.6,0.3266]
[1761030589213,0.1304,3885.6,3885.5,0.3296918]
[1761030589408,10.08612475,3885.6,3885.5,0.3296918]
[1761030589822,9.95572475,3885.6,3885.5,0.9075918]
[1761030590018,9.3718,3885.6,3885.5,0.9075918]
[1761030594840,9.5022,3885.6,3885.5,0.6880918]
[1761030595246,9.5022,3885.6,3885.0,0.59023]
[1761030595247,0.85442,3885.1,3885.0,0.4536]
[1761030595539,9.83502,3885.1,3885.0,0.9043]
[1761030596342,9.83502,3885.1,3885.0,0.90645978]
[1761030596637,9.96542,3885.1,3885.0,0.32875978]
[1761030597044,9.96542,3885.1,3885.0,0.45595978]
[1761030597244,9.96542,3885.1,3885.0,0.68715978]
[1761030597440,9.83502,3885.1,3885.0,0.68715978]
[1761030598043,9.83502,3885.1,3885.0,0.90665978]
[1761030599948,9.96542,3885.1,3885.0,0.45595978]
[1761030600142,9.83502,3885.1,3885.0,0.67075978]
[1761030600848,9.83502,3885.1,3885.0,0.90155978]
[1761030601245,9.3718,3885.1,3885.0,0.90155978]
[1761030601442,9.83502,3885.1,3885.0,0.90155978]
[1761030601744,9.57422,3885.1,3885.0,0.90155978]
[1761030602045,0.1304,3885.6,3885.5,0.1274]
[1761030602243,0.1304,3885.6,3885.5,0.8894]
[1761030602244,7.33796,3885.6,3885.5,0.8894]
[1761030602835,7.46836,3885.6,3885.5,0.3164]
[1761030603043,0.59362,3885.1,3885.0,0.57495978]
[1761030603541,0.85442,3885.1,3885.0,0.44575978]
[1761030603744,9.96542,3885.1,3885.0,0.00215978]
[1761030604251,10.54921918,3885.1,3885.0,0.00215978]
[1761030604652,10.54921918,3885.1,3884.0,0.1272]
[1761030604653,0.2608,3884.6,3884.0,0.1272]
[1761030604953,0.72412,3884.3,3884.2,0.5312]
[1761030605743,0.72412,3884.3,3884.2,0.53339952]
[1761030606151,0.72412,3884.3,3884.2,0.76419952]
[1761030606357,0.72411,3884.4,3884.3,0.762]
[1761030607350,0.59371,3884.4,3884.3,0.762]
[1761030607947,0.1304,3884.7,3884.5,0.1274]
[1761030608152,0.59367,3884.7,3884.6,0.762]
[1761030608357,0.46327,3884.7,3884.6,1.22528]
[1761030608551,0.46327,3884.7,3884.6,0.762]
[1761030608746,0.59367,3884.7,3884.6,0.762]
[1761030608951,0.85447,3884.7,3884.6,0.5312]
[1761030609352,0.85447,3884.7,3884.6,0.3164]
[1761030609562,0.72407,3884.7,3884.6,0.5312]
[1761030612361,0.3912,3884.4,3884.3,0.3164]
[1761030612958,0.3912,3884.4,3884.3,0.5312]
[1761030613165,0.2608,3884.4,3884.3,0.5312]
[1761030613658,0.7241,3884.4,3884.3,0.5312]
[1761030613855,0.8545,3884.4,3884.3,0.3164]
[1761030614161,0.85452,3884.3,3884.2,0.00219952]
[1761030614359,1.43907075,3884.3,3884.2,0.00219952]
[1761030616459,0.2564,3883.3,3883.2,0.5312]
[1761030616661,0.84836,3883.1,3883.0,0.1274]
[1761030617166,0.84838,3882.9,3882.8,0.36425461]
[1761030617368,0.85169501,3882.9,3882.8,0.36749454]
[1761030617671,9.83639501,3882.9,3882.8,0.59869454]
[1761030617868,9.83639501,3882.9,3882.8,0.82219454]
[1761030618166,9.83639501,3882.9,3882.8,0.59869454]
[1761030618572,9.37291501,3882.9,3882.8,0.82219454]
[1761030622975,9.83639501,3882.9,3882.8,0.82219454]
[1761030623275,0.00331501,3882.9,3882.8,1.28568454]
[1761030623763,0.46679501,3882.9,3882.8,1.28568454]
[1761030623959,0.00331501,3882.9,3882.8,1.28568454]
[1761030628183,0.1283,3884.2,3883.7,0.2156]
[1761030628474,0.1283,3883.8,3883.7,1.24979]
[1761030628672,0.59163,3884.2,3884.1,0.7864]
[1761030628875,9.96323,3884.2,3884.1,0.3447]
[1761030629174,9.965339,3884.2,3884.1,0.3447]
[1761030629775,0.2566,3883.8,3883.7,0.7864]
[1761030629977,0.71998,3883.8,3883.7,0.7864]
[1761030631577,0.84828,3883.8,3883.7,0.3447]
[1761030631879,0.71998,3883.8,3883.7,0.5603]
[1761030632077,0.71998,3883.8,3883.7,0.7864]
[1761030634385,0.8483,3883.6,3883.5,0.13]
[1761030634584,0.72006,3883.1,3883.0,0.5717]
[1761030634879,0.72006,3883.1,3883.0,0.9164]
[1761030635079,0.59176,3883.1,3883.0,0.9164]
[1761030635781,0.59176,3883.1,3883.0,1.37987]
[1761030635982,0.46346,3883.1,3883.0,1.37987]
[1761030637185,0.46346,3883.1,3883.0,0.9164]
[1761030637683,0.59176,3883.1,3883.0,0.9164]
[1761030638086,0.72006,3883.1,3883.0,0.9164]
[1761030639187,0.72006,3883.1,3883.0,1.37987]
[1761030639188,0.46346,3883.1,3883.0,1.37987]
[1761030639487,0.59176,3883.1,3883.0,0.9164]
[1761030639890,0.46346,3883.1,3883.0,1.37987]
[1761030640091,0.46346,3883.2,3883.1,1.24986]
[1761030640285,0.46346,3883.2,3883.1,0.7864]
[1761030641182,0.59176,3883.2,3883.1,0.7864]
[1761030641682,0.46346,3883.2,3883.1,0.7864]
[1761030642384,0.59176,3883.2,3883.1,0.7864]
[1761030642593,0.46346,3883.2,3883.1,1.24986]
[1761030643181,0.46346,3883.2,3883.1,0.7864]
[1761030643389,0.59176,3883.2,3883.1,0.7864]
[1761030643894,0.72006,3883.2,3883.1,0.7864]
[1761030644289,0.46346,3883.2,3883.1,0.7864]
[1761030645292,2.2491818,3883.2,3883.1,0.3447]
[1761030646187,1.30599569,3883.2,3883.1,0.7864]
[1761030646385,1.05158796,3883.9,3883.2,0.3447]
[1761030646587,1.05158796,3883.9,3882.7,1.38570792]
[1761030646588,0.0487,3882.4,3881.6,2.28582106]
[1761030646887,5.34669709,3882.3,3882.2,0.4417]
[1761030647086,1.4495218,3882.7,3882.5,0.13]
[1761030647291,1.063599,3882.6,3882.5,0.5717]
[1761030647506,1.112299,3882.6,3882.5,0.57466696]
[1761030647793,1.209699,3882.6,3882.5,0.00296696]
[1761030647998,2.13298696,3882.6,3882.5,0.00296696]
[1761030648202,1.209699,3882.6,3882.5,0.00296696]
[1761030649281,0.4636,3881.9,3881.8,0.3447]
[1761030649481,1.9618218,3881.9,3881.8,0.5603]
[1761030649801,2.5619008,3881.9,3881.8,0.7864]
[1761030650491,2.5619008,3881.9,3881.8,0.78832607]
[1761030651192,1.9618218,3881.9,3881.8,0.78832607]
[1761030654187,1.9618218,3881.9,3881.8,0.56222607]
[1761030654399,2.0105218,3881.9,3881.8,0.34662607]
[1761030654588,2.0105218,3881.9,3881.8,0.0371922]
[1761030654794,2.62830002,3881.9,3881.8,0.0371922]
[1761030654992,0.1461,3881.5,3881.4,0.3447]
[1761030655191,10.7259218,3881.5,3881.4,0.3447]
[1761030655397,10.6772218,3881.5,3881.4,0.5603]
[1761030655794,10.6772218,3881.5,3881.4,0.3447]
[1761030655993,10.6772218,3881.5,3881.4,0.00193574]
[1761030655994,10.7259218,3881.5,3881.4,0.00193574]
[1761030656797,1.4495218,3881.5,3881.4,0.78833574]
[1761030656999,10.6405218,3881.5,3881.4,0.78833574]
[1761030657202,10.5918218,3881.5,3881.4,0.78833574]
[1761030657405,1.8644318,3881.8,3881.7,0.7864]
[1761030657598,1.9131318,3881.8,3881.7,0.7864]
[1761030658305,1.15883,3882.5,3881.5,0.13]
[1761030658306,1.9620018,3882.1,3882.0,0.8824]
[1761030658494,11.1570018,3882.1,3882.0,0.8824]
[1761030660801,0.92459906,3882.9,3882.5,0.1326]
[1761030661101,0.56111,3882.7,3882.6,0.5301]
[1761030661496,0.56111,3882.7,3882.6,0.7498]
[1761030661696,0.46351,3882.7,3882.6,0.7498]
[1761030661896,0.60991,3882.7,3882.5,0.1326]
[1761030662097,9.3594,3882.6,3882.5,0.4499]
[1761030662304,11.37723306,3882.6,3882.5,0.4499]
[1761030663007,11.32843306,3882.6,3882.5,0.8824]
[1761030663204,10.6616218,3882.6,3882.5,0.8824]
[1761030665203,10.7104218,3882.6,3882.5,0.4499]
[1761030665404,11.1739418,3882.6,3882.5,0.4499]
[1761030665802,11.1739418,3882.6,3882.5,0.8824]
[1761030665803,11.1251418,3882.6,3882.5,0.8824]
[1761030666309,1.9131418,3882.6,3882.5,0.8824]
[1761030666608,1.4496218,3882.9,3882.5,0.5651]
[1761030666910,0.46351,3882.7,3882.6,0.7498]
[1761030667206,0.46351,3882.7,3882.6,1.21332]
[1761030667508,9.67151,3882.8,3882.7,0.3173]
[1761030667707,9.67151,3882.8,3882.7,0.7498]
[1761030668004,0.46351,3882.8,3882.7,0.7498]
[1761030668308,0.46351,3882.8,3882.7,1.21331]
[1761030668501,1.4496218,3883.2,3883.1,0.7498]
[1761030668707,1.12977564,3883.2,3883.1,0.7498]
[1761030668893,0.46345,3883.2,3883.1,0.7498]
[1761030669094,0.56105,3883.2,3883.1,0.7498]
[1761030669499,0.0976,3882.9,3882.8,0.3173]
[1761030669702,1.4984218,3882.9,3882.8,0.3173]
[1761030669910,1.5472218,3882.9,3882.8,0.3173]
[1761030670296,0.0976,3882.7,3882.6,0.3173]
[1761030670702,0.0976,3882.7,3882.6,0.5301]
[1761030671502,0.51229,3882.8,3882.7,0.3173]
[1761030671704,0.56109,3882.8,3882.7,0.5301]
[1761030672317,0.46352,3882.6,3882.5,0.4499]
[1761030672507,0.56115,3882.3,3882.2,0.5301]
[1761030672700,1.9619718,3882.3,3882.2,0.5301]
[1761030673105,0.56118,3882.1,3882.0,0.4499]
[1761030673312,0.51244,3881.6,3881.5,0.5625]
[1761030673612,1.9132618,3881.6,3881.5,0.5625]
[1761030673917,1.9132618,3881.6,3881.5,0.8798]
[1761030674120,1.9620618,3881.6,3881.5,0.8798]
[1761030674410,2.0108618,3881.6,3881.5,0.4473]
[1761030674610,2.62919705,3881.6,3881.5,0.4473]
[1761030674914,2.58039705,3881.6,3881.5,0.4473]
[1761030676404,0.61833525,3881.6,3881.5,0.8798]
[1761030676718,0.46361,3881.9,3881.8,0.745]
[1761030677106,1.9131318,3881.9,3881.8,0.745]
[1761030677318,1.9618318,3881.9,3881.8,0.526]
[1761030677502,0.46364,3881.6,3881.5,0.3424]
[1761030677709,1.9618618,3881.6,3881.5,0.3424]
[1761030677908,1.9618618,3881.6,3881.5,0.5614]
[1761030678112,1.9618618,3881.6,3881.5,0.875]
[1761030678306,1.9618618,3881.6,3881.5,0.4436]
[1761030678613,2.58033405,3881.6,3881.5,0.4436]
[1761030678815,1.17951225,3881.6,3881.5,0.4436]
[1761030679212,1.17951225,3881.6,3881.5,0.656]
[1761030679413,1.17951225,3881.6,3881.5,0.4436]
[1761030679618,1.22821225,3881.6,3881.5,0.4436]
[1761030679823,10.39351225,3881.6,3881.5,0.656]
[1761030680021,10.39351225,3881.6,3881.5,0.875]
[1761030680316,10.44221225,3881.6,3881.5,0.3136]
[1761030681522,10.44221225,3881.6,3881.5,0.4422]
[1761030681922,0.0487,3881.5,3881.4,0.00193574]
[1761030682121,0.71587225,3881.5,3881.4,0.31553574]
[1761030682422,1.17952225,3881.5,3881.4,0.31553574]
[1761030682725,1.17952225,3881.5,3881.4,0.52793574]
[1761030683220,10.39152225,3881.5,3881.4,0.52793574]
[1761030683722,10.44022225,3881.5,3881.4,0.31553574]
[1761030683923,10.44022225,3881.5,3881.4,0.00193574]
[1761030684125,10.44022225,3881.5,3881.4,0.31553574]
[1761030684624,10.44022225,3881.5,3881.4,0.00193574]
[1761030684917,10.44022225,3881.5,3881.4,0.31553574]
[1761030685419,10.44022225,3881.5,3881.4,0.00193574]
[1761030685616,10.39152225,3881.5,3881.4,0.31553574]
[1761030685821,10.39152225,3881.5,3881.4,0.52793574]
[1761030686723,10.39152225,3881.5,3881.4,0.56320186]
[1761030687126,10.44022225,3881.5,3881.4,0.03720186]
[1761030687421,0.6098,3881.1,3881.0,0.1286]
[1761030687722,0.56113,3880.8,3880.7,0.5308]
[1761030688115,0.56113,3880.8,3880.7,0.3136]
[1761030688312,0.56113,3880.8,3880.7,0.7455]
[1761030688627,0.56319696,3880.8,3880.7,0.74772137]
[1761030691823,0.51449696,3880.8,3880.7,0.74772137]
[1761030692328,0.00206696,3880.8,3880.7,1.21147137]
[1761030693025,0.46579696,3880.8,3880.7,1.21147137]
[1761030693226,0.46579696,3880.8,3880.7,0.74772137]
[1761030693421,0.51459696,3880.8,3880.7,0.74772137]
[1761030693621,0.46579696,3880.8,3880.7,0.74772137]
[1761030693827,0.46579696,3880.8,3880.7,1.21147137]
[1761030694932,0.00206696,3880.8,3880.7,1.21147137]
[1761030695629,0.46579696,3880.8,3880.7,0.74772137]
[1761030696024,0.51459696,3880.8,3880.7,0.74772137]
[1761030696329,0.56339696,3880.8,3880.7,0.74772137]
[1761030696724,0.56339696,3880.8,3880.7,0.53302137]
[1761030698929,2.24683214,3880.8,3880.7,0.53302137]
[1761030701433,2.86766196,3880.8,3880.7,0.53302137]
[1761030701631,1.08662678,3880.8,3880.7,0.74772137]
[1761030701835,0.46579696,3880.8,3880.7,0.74772137]
[1761030702427,0.51459696,3880.8,3880.7,0.74772137]
[1761030702733,0.46579696,3880.8,3880.7,1.21147137]
[1761030703230,1.08728294,3880.8,3880.7,1.21147137]
[1761030703431,0.46579696,3880.8,3880.7,1.21147137]
[1761030703630,1.0872856,3880.8,3880.7,1.21147137]
[1761030703825,1.0872856,3880.8,3880.7,0.74772137]
[1761030707435,1.0872856,3880.8,3880.7,1.21147137]
[1761030707626,1.1360856,3880.8,3880.7,1.21147137]
[1761030707936,1.1360856,3880.8,3880.7,0.74772137]
[1761030708635,1.0872856,3880.8,3880.7,1.21147137]
[1761030708824,0.6235556,3880.8,3880.7,1.21147137]
[1761030709030,0.00206696,3880.8,3880.7,1.21147137]
[1761030709333,0.46579696,3880.8,3880.7,1.21147137]
[1761030712441,0.46579696,3880.8,3880.7,0.74772137]
[1761030712737,0.51459696,3880.8,3880.7,0.74772137]
[1761030713128,0.56339696,3880.8,3880.7,0.53302137]
[1761030713337,1.18474142,3880.8,3880.7,0.53302137]
[1761030713738,1.18474142,3880.8,3880.7,0.74772137]
[1761030714736,1.18474142,3880.8,3880.7,0.53302137]
[1761030715741,1.23354142,3880.8,3880.7,0.34592137]
[1761030716035,1.08714142,3880.8,3880.7,1.24157137]
[1761030716833,1.18474142,3880.8,3880.7,0.77782137]
[1761030717029,1.13594142,3880.8,3880.7,0.77782137]
[1761030717234,1.18474142,3880.8,3880.7,0.77782137]
[1761030717535,1.08714142,3880.8,3880.7,0.77782137]
[1761030717836,1.18474142,3880.8,3880.7,0.34592137]
[1761030718139,0.62341142,3880.8,3880.7,0.77902137]
[1761030718843,0.72113034,3880.8,3880.7,0.77902137]
[1761030719044,0.00206696,3880.8,3880.7,0.77902137]
[1761030719338,0.72112882,3880.8,3880.7,0.33312137]
[1761030719539,0.72112882,3880.8,3880.7,0.55152137]
[1761030719738,0.62352882,3880.8,3880.7,0.77902137]
[1761030720245,0.72112882,3880.8,3880.7,0.77902137]
[1761030720636,2.453364,3880.8,3880.7,0.00222137]
[1761030721137,2.453364,3880.8,3880.7,0.33312137]
[1761030721833,0.72112882,3880.8,3880.7,0.55152137]
[1761030722037,0.72112882,3880.8,3880.7,0.33312137]
[1761030722038,0.76992882,3880.8,3880.7,0.33312137]
[1761030722438,0.72112882,3880.8,3880.7,0.55152137]
[1761030722736,0.76992882,3880.8,3880.7,0.33312137]
[1761030722934,0.72112882,3880.8,3880.7,0.77902137]
[1761030723137,0.67232882,3880.8,3880.7,0.77902137]
[1761030723339,0.72112882,3880.8,3880.7,0.77902137]
[1761030724448,0.67232882,3880.8,3880.7,0.77902137]
[1761030725242,0.62352882,3880.8,3880.7,0.77902137]
[1761030725748,0.00206696,3880.8,3880.7,1.24277137]
[1761030728050,0.00206696,3880.8,3880.7,6.24277137]
[1761030728353,0.0976,3882.6,3882.5,0.68]
[1761030728552,0.56112,3882.6,3882.5,0.9075]
[1761030728950,0.51232,3882.6,3882.5,0.9075]
[1761030729140,0.46352,3882.6,3882.5,0.9075]
[1761030729343,0.46611952,3882.6,3882.5,0.9075]
[1761030729550,0.46611952,3882.6,3882.3,0.3309]
[1761030729551,0.0976,3882.4,3882.3,0.3309]
[1761030729750,1.82983518,3882.4,3882.3,0.3309]
[1761030730045,0.0976,3882.2,3882.1,0.3309]
[1761030730246,0.60998,3882.1,3882.0,0.4616]
[1761030730446,0.51244,3881.6,3881.5,0.5766]
[1761030730644,0.56124,3881.6,3881.5,0.3491]
[1761030731055,0.56124,3881.6,3881.5,0.68]
[1761030731851,0.0488,3880.9,3880.8,0.7768]
[1761030732861,0.0488,3881.3,3881.2,0.7768]
[1761030733045,0.46365,3881.5,3881.3,0.3309]
[1761030733358,0.56125,3881.5,3881.4,0.7768]
[1761030734261,0.56125,3881.5,3881.4,0.81206612]
[1761030735263,0.56125,3881.5,3881.4,0.58456612]
[1761030735559,0.56125,3881.5,3881.4,0.36616612]
[1761030736360,0.61005,3881.5,3881.4,0.36616612]
[1761030736660,0.61005,3881.5,3881.4,0.03526612]
[1761030736859,5.61005,3881.5,3881.4,0.03526612]
[1761030737059,0.84518453,3881.5,3881.4,0.03526612]
[1761030737851,0.56125,3881.5,3881.4,0.37416612]
[1761030738060,0.56125,3881.5,3881.4,0.58456612]
[1761030738463,0.61005,3881.5,3881.4,0.58456612]
[1761030738762,0.61005,3881.5,3881.4,0.37416612]
[1761030738964,0.61005,3881.5,3881.4,0.03526612]
[1761030739262,5.61005,3881.5,3881.4,0.03526612]
[1761030739463,5.84517411,3881.5,3881.4,0.03526612]
[1761030739766,6.46477954,3881.5,3881.4,0.03526612]
[1761030740962,2.1547017,3881.5,3881.4,0.37416612]
[1761030741760,2.1059017,3881.5,3881.4,0.37416612]
[1761030742063,2.1547017,3881.5,3881.4,0.37416612]
[1761030743069,1.22965543,3881.5,3881.4,0.37416612]
[1761030743267,1.22965543,3881.5,3881.4,0.03526612]
[1761030743573,1.464754,3881.5,3881.4,0.03526612]
[1761030744267,0.56133,3880.8,3880.7,0.34112137]
[1761030744566,1.18093543,3880.8,3880.7,0.55152137]
[1761030744770,1.18093543,3880.8,3880.7,0.76572137]
[1761030749370,1.18093543,3880.8,3880.7,0.55152137]
[1761030749568,1.18093543,3880.8,3880.7,0.00222137]
[1761030749569,1.22963543,3880.8,3880.7,0.00222137]
[1761030749865,1.18093543,3880.8,3880.7,0.31612137]
[1761030750058,1.18093543,3880.8,3880.7,0.52742137]